bitfinex-derivatives/quotes_SOLF0:USTF0_20250207
["timestamp","ask_amount","ask_price","bid_price","bid_amount"]
[1738890387966,0.96298075,190.89,190.75,14.89564536]
[1738890388165,5.2401,190.83,190.75,20.13774536]
[1738890388565,14.89564536,190.9,190.76,5.2418]
[1738890388862,0.96301706,190.89,190.76,5.2418]
[1738890389064,0.03557639,190.85,190.81,0.04012235]
[1738890389261,5.2398,190.84,190.81,0.04012235]
[1738890390558,0.03557639,190.85,190.81,0.04012235]
[1738890391164,0.03557639,190.85,190.81,14.93576771]
[1738890391764,0.03557639,190.85,190.82,5.2401]
[1738890392158,0.03557639,190.85,190.81,20.17626771]
[1738890392669,0.03557639,190.85,190.81,14.93576771]
[1738890392874,0.03557639,190.85,190.82,5.2402]
[1738890393178,0.03557639,190.85,190.81,14.93576771]
[1738890393577,0.03557639,190.85,190.84,14.89564536]
[1738890394179,5.2377,190.92,190.84,14.89564536]
[1738890394379,5.2377,190.92,190.87,14.89564536]
[1738890395471,5.2377,190.92,190.88,0.03596995]
[1738890396279,5.2372,190.94,190.88,0.03596995]
[1738890397084,19.81104536,191.02,190.88,0.03596995]
[1738890397278,0.96253526,191.01,190.9,14.89564536]
[1738890397473,5.2355,191.0,190.93,20.17078538]
[1738890397680,5.2355,191.0,190.93,14.93378538]
[1738890398879,5.2355,191.0,190.94,5.2369]
[1738890400278,5.2355,191.0,190.93,14.93378538]
[1738890400279,4.9154,191.02,190.93,14.93378538]
[1738890400479,0.96233794,191.01,190.93,0.03814002]
[1738890400981,5.2361,190.97,190.93,0.03814002]
[1738890401285,19.81104536,191.02,190.93,0.03814002]
[1738890401486,5.2368,190.95,190.93,0.03814002]
[1738890401988,19.81104536,191.02,190.93,0.03814002]
[1738890402184,5.2369,190.94,190.93,0.03814002]
[1738890402987,14.89564536,190.99,190.82,4.9123]
[1738890402988,14.89564536,190.96,190.84,14.89564536]
[1738890403185,16.48694536,190.93,190.82,1.6849]
[1738890403486,1.5629,190.92,190.81,14.89564536]
[1738890404388,0.03536903,190.88,190.85,0.03664726]
[1738890405588,0.03536903,190.88,190.87,14.89564536]
[1738890405985,14.89564536,191.02,190.87,14.89564536]
[1738890406287,2.55096116,191.01,190.9,14.89564536]
[1738890406485,0.96256116,191.0,190.9,14.89564536]
[1738890406691,5.2357,190.99,190.9,20.13344536]
[1738890406884,1.5884,191.01,190.9,20.13344536]
[1738890407190,5.2361,190.98,190.9,20.13344536]
[1738890407393,1.5884,191.01,190.94,0.03441537]
[1738890408185,3.1983,191.01,190.94,0.03441537]
[1738890408791,5.2361,190.97,190.94,0.03441537]
[1738890410787,5.2367,190.95,190.94,0.03441537]
[1738890411097,14.89564536,190.99,190.87,14.89564536]
[1738890411286,0.96263973,190.98,190.84,16.43264536]
[1738890411586,5.2381,190.9,190.84,16.43264536]
[1738890412389,5.2749645,190.89,190.85,0.03609453]
[1738890412694,5.2383,190.89,190.84,16.43264536]
[1738890412888,5.2383,190.89,190.85,0.03870805]
[1738890412889,5.27279089,190.89,190.85,0.03870805]
[1738890413188,5.2389,190.87,190.85,0.03870805]
[1738890414687,0.03449089,190.89,190.85,0.03870805]
[1738890414887,5.2391,190.86,190.85,0.03870805]
[1738890415285,0.03449089,190.89,190.85,0.03870805]
[1738890415688,5.2391,190.87,190.85,0.03870805]
[1738890416787,5.2391,190.86,190.85,0.03870805]
[1738890423392,5.2389,190.87,190.85,0.03870805]
[1738890423697,0.03449089,190.89,190.85,0.03870805]
[1738890424191,5.2391,190.86,190.85,0.03870805]
[1738890424398,0.03449089,190.89,190.85,0.03870805]
[1738890425886,5.2386,190.88,190.85,0.03870805]
[1738890426197,0.03449089,190.89,190.85,0.03870805]
[1738890426693,0.03449089,190.89,190.87,14.89564536]
[1738890427689,0.03449089,190.89,190.88,9.6955939]
[1738890427894,5.2366,190.96,190.9,14.89564536]
[1738890428401,5.236,190.98,190.9,20.13364536]
[1738890428696,5.236,190.98,190.91,4.45888084]
[1738890428993,5.236,190.98,190.93,14.89564536]
[1738890429199,5.2354,191.0,190.93,14.89564536]
[1738890430302,4.7592,191.01,190.94,4.46084888]
[1738890430895,5.2355,191.0,190.93,14.89564536]
[1738890431097,5.2355,191.0,190.94,4.57958981]
[1738890431391,5.2355,191.0,190.93,14.89564536]
[1738890431698,5.2355,191.0,190.94,4.46246172]
[1738890432201,5.2356,190.99,190.94,4.46246172]
[1738890432502,5.2356,190.99,190.93,14.89564536]
[1738890433002,5.2356,190.99,190.94,4.57815775]
[1738890433204,5.2356,190.99,190.93,14.89564536]
[1738890434201,5.2356,190.99,190.94,4.46159779]
[1738890434503,5.2356,190.99,190.93,14.89564536]
[1738890434699,14.89564536,191.05,190.93,20.13284536]
[1738890434700,5.2353,191.0,190.93,20.13284536]
[1738890434905,5.2353,191.0,190.94,4.57875706]
[1738890435105,18.20514536,191.05,190.95,0.03484863]
[1738890435304,14.89564536,191.02,190.95,0.03484863]
[1738890435495,1.6139,191.01,190.95,0.03484863]
[1738890435701,14.89564536,190.99,190.88,8.13256833]
[1738890435909,14.89564536,190.99,190.88,4.46300681]
[1738890436300,5.2365,190.96,190.87,14.89564536]
[1738890436598,14.89564536,190.99,190.87,14.89564536]
[1738890436909,5.2377,190.92,190.91,0.03669634]
[1738890440106,1.5828,190.94,190.81,16.41924536]
[1738890440413,14.89564536,190.93,190.81,16.41924536]
[1738890440602,3.1783,190.94,190.87,14.89564536]
[1738890440801,3.96,190.97,190.87,14.89564536]
[1738890441003,3.96,190.97,190.88,4.46405768]
[1738890441203,0.0372912,190.94,190.9,0.04004122]
[1738890441810,5.2741912,190.94,190.9,0.04004122]
[1738890443110,0.0372912,190.94,190.9,0.04004122]
[1738890443606,0.0372912,190.94,190.9,14.93568658]
[1738890443811,0.0372912,190.94,190.93,14.89564536]
[1738890444714,0.0372912,190.94,190.93,19.35970089]
[1738890446116,5.2347,191.03,190.93,19.35970089]
[1738890446311,77.65223436,191.1,190.97,14.89564536]
[1738890446503,77.65223436,191.1,190.94,1.64]
[1738890446703,5.2337,191.06,191.0,14.89564536]
[1738890447314,0.03486758,191.05,191.01,0.03621876]
[1738890448207,0.03486758,191.05,191.01,5.27111876]
[1738890448413,0.03486758,191.05,191.03,14.89564536]
[1738890449620,1.6833,191.16,191.03,14.89564536]
[1738890450008,1.6833,191.16,191.04,6.09931941]
[1738890450618,5.2329,191.09,191.04,1.646]
[1738890450812,5.2329,191.09,191.08,0.03668227]
[1738890453015,5.2329,191.09,191.08,8.227e-05]
[1738890457122,0.03531243,191.1,191.08,8.227e-05]
[1738890458814,5.26791243,191.1,191.08,8.227e-05]
[1738890460322,0.03531243,191.1,191.08,8.227e-05]
[1738890460516,5.2328,191.09,191.08,8.227e-05]
[1738890462823,0.03531243,191.1,191.08,8.227e-05]
[1738890463724,5.2328,191.09,191.08,8.227e-05]
[1738890467123,0.03531243,191.1,191.08,8.227e-05]
[1738890468815,5.26801243,191.1,191.08,8.227e-05]
[1738890471820,0.03531243,191.1,191.08,8.227e-05]
[1738890472027,5.2328,191.09,191.08,8.227e-05]
[1738890475017,5.26791243,191.1,191.08,8.227e-05]
[1738890477130,5.2328,191.09,191.08,8.227e-05]
[1738890478932,8.5298,191.09,191.08,8.227e-05]
[1738890481227,0.03531243,191.1,191.08,8.227e-05]
[1738890481426,5.2328,191.09,191.08,8.227e-05]
[1738890485329,6.8377,191.09,191.08,8.227e-05]
[1738890489027,5.2328,191.09,191.08,8.227e-05]
[1738890490234,0.03531243,191.1,191.08,8.227e-05]
[1738890492739,5.26791243,191.1,191.08,8.227e-05]
[1738890492938,0.03531243,191.1,191.08,8.227e-05]
[1738890494428,5.2328,191.09,191.08,8.227e-05]
[1738890496339,0.03531243,191.1,191.08,8.227e-05]
[1738890497640,5.26811243,191.1,191.08,8.227e-05]
[1738890498034,0.03531243,191.1,191.08,8.227e-05]
[1738890501645,5.26791243,191.1,191.08,8.227e-05]
[1738890503645,5.2328,191.09,191.08,8.227e-05]
[1738890506342,6.19487339,191.09,191.08,8.227e-05]
[1738890506856,5.2328,191.09,191.08,8.227e-05]
[1738890508047,5.2328,191.09,190.97,4.7335]
[1738890508048,5.2349,191.02,190.97,4.7335]
[1738890509249,0.03771076,191.01,190.98,0.03913479]
[1738890509855,0.03771076,191.01,190.99,14.89564536]
[1738890511052,20.50124536,191.13,190.99,14.89564536]
[1738890511253,5.2334,191.07,191.0,5.2353]
[1738890511455,0.96195269,191.12,190.97,4.7335]
[1738890511749,14.89564536,191.16,191.05,14.89564536]
[1738890512352,14.89564536,191.16,191.08,0.0385068]
[1738890513350,5.232,191.12,191.08,0.0385068]
[1738890518956,5.2323,191.11,191.08,0.0385068]
[1738890519353,14.89564536,191.16,191.08,0.0385068]
[1738890520761,5.2325,191.11,191.08,0.0385068]
[1738890522161,5.2328,191.09,191.08,0.0385068]
[1738890524062,4.92204674,191.09,190.95,29.11385832]
[1738890524363,14.89564536,191.03,190.95,29.11385832]
[1738890524567,5.235,191.02,190.95,29.11385832]
[1738890525261,0.03523019,191.0,190.97,0.03392611]
[1738890528668,18.05694536,191.12,190.99,14.89564536]
[1738890529163,18.05694536,191.12,191.0,5.2352]
[1738890529666,18.05694536,191.12,190.99,20.13114536]
[1738890529861,18.05694536,191.12,191.04,0.03587412]
[1738890530765,5.2335,191.07,191.04,0.03587412]
[1738890530961,1.6076,191.16,191.04,0.03587412]
[1738890531359,1.6076,191.16,191.02,14.89564536]
[1738890531558,5.232,191.12,191.08,0.03843872]
[1738890533163,14.89564536,191.15,191.08,0.03843872]
[1738890533465,5.2328,191.09,191.08,0.03843872]
[1738890534666,14.89564536,191.15,191.08,0.03843872]
[1738890535460,5.2318,191.13,191.08,0.03843872]
[1738890535660,14.89564536,191.15,191.08,0.03843872]
[1738890536869,5.2323,191.11,191.08,0.03843872]
[1738890538470,5.2326,191.1,191.08,0.03843872]
[1738890539669,14.89564536,191.15,191.08,0.03843872]
[1738890539870,5.2328,191.09,191.08,0.03843872]
[1738890540368,14.89564536,191.09,190.99,1.645]
[1738890540565,14.89564536,191.09,190.98,3.344]
[1738890541170,14.89564536,191.12,190.99,14.89564536]
[1738890541671,14.89564536,191.12,191.04,0.03790972]
[1738890541672,0.03452185,191.07,191.04,0.03790972]
[1738890546268,5.2337,191.06,191.04,0.03790972]
[1738890547672,5.2339,191.05,191.04,0.03790972]
[1738890553477,14.89564536,191.06,190.94,1.667]
[1738890553680,14.89564536,191.03,190.93,3.2641]
[1738890554480,5.2357,190.99,190.93,3.2641]
[1738890554683,5.2357,190.99,190.96,0.0377114]
[1738890554878,0.03873192,191.0,190.96,0.0377114]
[1738890555580,14.93437728,191.0,190.96,0.0377114]
[1738890555882,5.2361,190.97,190.96,0.0377114]
[1738890556186,0.03873192,191.0,190.96,0.0377114]
[1738890558588,5.2356,190.99,190.96,0.0377114]
[1738890558992,0.03873192,191.0,190.96,0.0377114]
[1738890559285,5.2361,190.97,190.96,0.0377114]
[1738890562984,5.2361,190.97,190.96,1.14e-05]
[1738890563180,5.2361,190.97,190.83,3.1646]
[1738890563181,14.89564536,190.97,190.83,3.1646]
[1738890563482,14.89564536,190.91,190.82,7.30437572]
[1738890563886,14.89564536,190.91,190.81,21.8094826]
[1738890563887,14.89564536,190.88,190.81,7.30437572]
[1738890564291,0.03581183,190.86,190.83,0.03429063]
[1738890565387,14.89564536,190.85,190.81,6.635e-05]
[1738890566188,5.2405,190.81,190.8,4.895e-05]
[1738890566585,0.03581183,190.86,190.8,4.895e-05]
[1738890566890,5.24,190.83,190.79,0.03957575]
[1738890567091,14.89564536,190.83,190.79,7.575e-05]
[1738890567992,5.2408,190.8,190.79,7.575e-05]
[1738890568192,20.13644536,190.8,190.79,7.575e-05]
[1738890570495,20.13644536,190.8,190.69,1.6327]
[1738890570496,15.8592092,190.8,190.69,1.6327]
[1738890570695,14.89564536,190.77,190.68,1.5665]
[1738890571088,5.2427,190.74,190.68,1.5665]
[1738890571694,5.2808794,190.73,190.69,0.03459582]
[1738890572095,0.0381794,190.73,190.69,0.03459582]
[1738890572292,5.2433,190.71,190.69,0.03459582]
[1738890572894,0.0381794,190.73,190.69,0.03459582]
[1738890574601,5.2435,190.7,190.69,0.03459582]
[1738890576201,5.2446,190.67,190.6,1.5875]
[1738890576796,5.2446,190.67,190.6,6.8337]
[1738890577400,0.03836481,190.65,190.62,5.28149216]
[1738890578302,5.2441,190.69,190.62,0.03579216]
[1738890578505,5.2441,190.69,190.63,5.2454]
[1738890578802,5.2434,190.71,190.62,14.93143752]
[1738890578996,5.2434,190.71,190.64,5.245]
[1738890579192,14.89564536,190.74,190.64,5.245]
[1738890579702,5.2438,190.69,190.67,0.03504111]
[1738890580192,0.03694807,190.71,190.67,0.03504111]
[1738890581200,5.2438,190.69,190.67,0.03504111]
[1738890581403,0.03694807,190.71,190.67,0.03504111]
[1738890582705,5.2438,190.69,190.67,0.03504111]
[1738890583808,5.2435,190.7,190.67,0.03504111]
[1738890584007,0.03694807,190.71,190.67,0.03504111]
[1738890584602,5.2441,190.68,190.67,0.03504111]
[1738890588112,5.2463,190.6,190.53,14.89564536]
[1738890588309,14.89564536,190.64,190.54,1.6455]
[1738890588812,5.2464,190.6,190.54,1.6455]
[1738890589402,0.0356081,190.59,190.55,0.03657301]
[1738890589608,5.2822081,190.59,190.55,0.03657301]
[1738890590115,5.2469,190.58,190.55,0.03657301]
[1738890591014,5.2474,190.56,190.55,0.03657301]
[1738890591709,5.2474,190.56,190.55,7.301e-05]
[1738890595119,0.0356081,190.59,190.55,7.301e-05]
[1738890595526,5.2822081,190.59,190.55,7.301e-05]
[1738890596423,5.2468,190.58,190.55,7.301e-05]
[1738890597026,0.0356081,190.59,190.55,7.301e-05]
[1738890597220,5.2471,190.57,190.55,7.301e-05]
[1738890597621,0.0356081,190.59,190.55,7.301e-05]
[1738890597819,5.2474,190.56,190.55,7.301e-05]
[1738890604141,5.2494,190.49,190.47,1.6234]
[1738890604743,5.2491,190.5,190.47,1.6234]
[1738890605240,5.28843132,190.5,190.47,1.65703925]
[1738890606042,5.2494,190.49,190.47,1.65703925]
[1738890606243,0.03933132,190.5,190.47,0.03363925]
[1738890606542,5.2476,190.56,190.47,14.92928461]
[1738890606845,14.89564536,190.63,190.5,14.89564536]
[1738890607037,0.96442335,190.62,190.51,1.6508]
[1738890607232,5.2472,190.57,190.51,6.8996]
[1738890607638,14.89564536,190.63,190.51,1.6508]
[1738890607838,0.03522626,190.56,190.52,0.03490336]
[1738890608143,14.89564536,190.63,190.52,0.03490336]
[1738890608639,5.246,190.62,190.56,5.2474]
[1738890608833,14.89564536,190.69,190.56,14.89564536]
[1738890609039,14.89564536,190.69,190.57,1.5248]
[1738890609342,0.03412539,190.64,190.61,0.03835025]
[1738890609543,14.89564536,190.69,190.61,0.03835025]
[1738890609737,0.03485942,190.64,190.61,0.03835025]
[1738890609937,0.03485942,190.64,190.6,1.6508]
[1738890610138,0.03485942,190.64,190.63,0.03539514]
[1738890612544,14.89564536,190.75,190.63,0.03539514]
[1738890612941,14.89564536,190.75,190.62,14.89564536]
[1738890613142,5.2428,190.73,190.66,5.2445]
[1738890613342,118.71564536,190.78,190.65,14.89564536]
[1738890613548,118.71564536,190.78,190.66,1.6643]
[1738890613848,0.03317591,190.73,190.7,0.03826783]
[1738890614436,5.2433,190.71,190.7,0.03826783]
[1738890614841,0.03317591,190.73,190.7,0.03826783]
[1738890616748,5.2432,190.72,190.7,0.03826783]
[1738890616943,0.03317591,190.73,190.7,0.03826783]
[1738890617441,5.243,190.72,190.7,0.03826783]
[1738890619348,0.03317591,190.73,190.7,0.03826783]
[1738890620749,5.2433,190.71,190.7,0.03826783]
[1738890622550,0.03317591,190.73,190.7,0.03826783]
[1738890623647,1.6454,190.84,190.7,23.80768068]
[1738890623950,1.6454,190.84,190.7,23.76941285]
[1738890624547,25.41481285,190.84,190.68,1.5918]
[1738890624854,0.03389202,190.79,190.75,0.03441123]
[1738890626753,5.2419,190.76,190.75,0.03441123]
[1738890627451,5.2419,190.76,190.75,1.123e-05]
[1738890629851,6.8295,190.76,190.75,1.123e-05]
[1738890633651,5.2444,190.67,190.65,1.6039]
[1738890633852,23.76941285,190.74,190.64,1.6788]
[1738890634051,23.76941285,190.74,190.57,23.76941285]
[1738890634250,5.2453,190.64,190.58,6.7921]
[1738890634948,0.03740777,190.63,190.59,0.03396595]
[1738890636752,5.246,190.61,190.59,0.03396595]
[1738890637562,0.03740777,190.63,190.59,14.8967867]
[1738890637751,16.45212075,190.75,190.62,14.86282075]
[1738890638256,5.2432,190.72,190.63,5.2454]
[1738890638462,16.45212075,190.75,190.63,5.2454]
[1738890638663,1.5893,190.75,190.63,5.2454]
[1738890638850,0.04032986,190.71,190.67,0.03394122]
[1738890639462,5.2441,190.68,190.67,0.03394122]
[1738890642467,5.2438,190.7,190.67,0.03394122]
[1738890642660,0.04032986,190.71,190.67,0.03394122]
[1738890643756,0.04032986,190.71,190.67,5.27804122]
[1738890645860,0.04032986,190.71,190.67,6.95774122]
[1738890647064,0.04032986,190.71,190.67,1.71364122]
[1738890647367,3.96,190.81,190.69,5.2438]
[1738890647562,5.2423,190.75,190.67,25.44300763]
[1738890647758,5.2423,190.75,190.7,5.2435]
[1738890648460,5.2423,190.75,190.71,0.04033454]
[1738890648665,0.03780344,190.74,190.71,0.04033454]
[1738890648862,5.2415,190.78,190.71,0.04033454]
[1738890649066,3.96,190.88,190.73,23.76330763]
[1738890649363,26.96620763,190.89,190.74,1.5797]
[1738890649661,5.2403,190.82,190.77,5.2415]
[1738890650061,0.03666677,190.81,190.78,0.03730963]
[1738890650564,0.03666677,190.81,190.78,5.27840963]
[1738890650864,0.03666677,190.81,190.78,0.03730963]
[1738890651167,0.03666677,190.81,190.78,5.27860963]
[1738890653673,0.03666677,190.81,190.8,5.2408]
[1738890653966,129.23580763,190.92,190.78,0.03730963]
[1738890654167,105.4725,190.92,190.76,23.76330763]
[1738890654470,103.86,190.92,190.76,23.76330763]
[1738890655068,5.2389,190.87,190.82,5.27486201]
[1738890655272,103.86,190.92,190.82,0.03466201]
[1738890657769,5.2396,190.85,190.82,0.03466201]
[1738890657962,103.86,190.92,190.82,0.03466201]
[1738890658165,1.5412,190.94,190.82,0.03466201]
[1738890658463,1.5412,190.94,190.79,23.76330763]
[1738890658464,1.5412,190.94,190.84,5.2396]
[1738890658669,18.78209869,190.95,190.86,0.03803589]
[1738890658870,5.238,190.91,190.86,0.03803589]
[1738890659371,1.6657,190.96,190.86,0.03803589]
[1738890659772,1.6436,190.97,190.86,0.03803589]
[1738890659971,5.237,190.94,190.88,5.2384]
[1738890660176,1.6436,190.97,190.86,0.03803589]
[1738890660373,1.6436,190.97,190.89,0.03359794]
[1738890661373,5.238,190.9,190.89,0.03359794]
[1738890661577,5.238,190.9,190.89,9.794e-05]
[1738890663280,5.2416,190.77,190.76,7.21754507]
[1738890663775,23.71186614,190.85,190.76,7.21754507]
[1738890664374,5.2408,190.8,190.79,0.03480498]
[1738890668474,5.27389794,190.82,190.79,0.03480498]
[1738890668680,0.03359794,190.82,190.79,0.03480498]
[1738890669276,25.36296614,190.94,190.79,0.03480498]
[1738890669474,25.36296614,190.94,190.82,5.2401]
[1738890669475,5.2381,190.9,190.82,5.2401]
[1738890669675,1.6511,190.94,190.8,3.2347]
[1738890670579,1.6511,190.94,190.85,0.03357137]
[1738890670780,5.2377,190.92,190.85,5.27297137]
[1738890673485,5.2381,190.9,190.85,0.03357137]
[1738890673684,23.71186614,190.95,190.8,187.46479943]
[1738890673987,4.6533,190.97,190.86,0.03655549]
[1738890673988,23.71186614,190.89,190.86,0.03655549]
[1738890674183,5.2389,190.87,190.86,5.549e-05]
[1738890675782,1.55,190.87,190.74,1.607]
[1738890676882,5.2750392,190.82,190.79,0.03449382]
[1738890679187,0.0348392,190.82,190.79,0.03449382]
[1738890681283,1.6729,190.93,190.79,0.03449382]
[1738890681583,5.2382,190.9,190.79,23.71186614]
[1738890681790,5.2382,190.9,190.8,3.2637]
[1738890681988,5.2382,190.9,190.84,5.2394]
[1738890682186,1.0473946,190.95,190.82,23.71186614]
[1738890682187,5.2377,190.92,190.82,23.71186614]
[1738890682384,1.0473946,190.95,190.82,23.71186614]
[1738890682585,1.0473946,190.95,190.87,5.2387]
[1738890682784,5.2375,190.93,190.87,5.2387]
[1738890682985,1.0473946,190.95,190.89,0.03446875]
[1738890683392,1.0473946,190.95,190.89,3.29816875]
[1738890685090,46.88600438,191.03,190.89,3.29816875]
[1738890685291,46.88600438,191.03,190.89,3.2637]
[1738890685487,46.88600438,191.03,190.94,0.03803361]
[1738890685788,5.2357,190.99,190.94,0.03803361]
[1738890686189,105.3935,191.06,190.94,0.03803361]
[1738890686391,105.3935,191.06,190.91,23.71186614]
[1738890686695,105.3935,191.06,190.97,0.04022205]
[1738890687093,5.2344,191.04,190.97,0.04022205]
[1738890687292,105.3935,191.06,190.97,0.04022205]
[1738890687797,5.2353,191.01,190.97,0.04022205]
[1738890689799,105.3935,191.06,190.97,0.04022205]
[1738890690000,23.71186614,191.04,190.97,0.04022205]
[1738890691106,5.2357,190.99,190.97,0.04022205]
[1738890691505,23.71186614,191.04,190.97,0.04022205]
[1738890691706,5.2353,191.0,190.97,0.04022205]
[1738890692109,5.2346,191.03,190.97,0.04022205]
[1738890693309,105.3935,191.06,190.97,0.04022205]
[1738890693609,5.2347,191.02,190.97,0.04022205]
[1738890694409,105.3935,191.06,190.97,0.04022205]
[1738890694611,5.2356,190.99,190.97,0.04022205]
[1738890694807,23.71186614,191.04,190.97,0.04022205]
[1738890695109,0.96238005,191.03,190.97,0.04022205]
[1738890695605,23.71186614,191.04,190.97,0.04022205]
[1738890695811,5.2358,190.98,190.97,0.04022205]
[1738890696810,5.2368,190.95,190.89,187.49379943]
[1738890697006,5.2368,190.95,190.89,3.2637]
[1738890697709,23.71186614,191.01,190.89,3.2637]
[1738890697910,0.03368038,190.94,190.9,0.0399045]
[1738890698212,23.71186614,191.04,190.89,3.2637]
[1738890698411,0.03533725,190.94,190.9,0.03734081]
[1738890698611,0.03533725,190.94,190.89,3.2637]
[1738890698612,5.2361,190.98,190.92,5.2373]
[1738890698804,0.03533,190.94,190.9,0.03952623]
[1738890699209,5.27233,190.94,190.9,0.03952623]
[1738890699609,0.03533,190.94,190.9,0.03952623]
[1738890699907,0.03533,190.94,190.92,5.2374]
[1738890702012,5.2354,191.0,190.9,0.03952623]
[1738890702214,105.3935,191.06,190.91,23.71186614]
[1738890702407,105.3935,191.06,190.92,1.6309]
[1738890703309,5.2344,191.04,190.97,0.03430313]
[1738890703511,105.3935,191.06,190.97,0.03430313]
[1738890704618,14.80667029,191.05,190.97,0.03430313]
[1738890705121,14.80667029,191.02,190.97,0.03430313]
[1738890705611,5.2358,190.98,190.97,0.03430313]
[1738890705810,14.80667029,191.02,190.97,0.03430313]
[1738890706522,5.2352,191.01,190.97,0.03430313]
[1738890706822,23.69794219,191.04,190.97,0.03430313]
[1738890707018,5.235,191.02,190.97,0.03430313]
[1738890707414,23.69794219,191.04,190.97,0.03430313]
[1738890707923,5.2356,190.99,190.97,0.03430313]
[1738890708920,5.2358,190.98,190.97,0.03430313]
[1738890709121,23.69794219,191.04,190.97,0.03430313]
[1738890709921,5.2355,191.0,190.97,0.03430313]
[1738890710120,23.69794219,191.04,190.97,0.03430313]
[1738890710526,5.2354,191.0,190.97,0.03430313]
[1738890711521,23.69794219,191.04,190.97,0.03430313]
[1738890711715,5.2358,190.98,190.97,0.03430313]
[1738890714318,3.96,191.02,190.97,0.03430313]
[1738890714522,5.2356,191.0,190.97,0.03430313]
[1738890715133,3.96,191.02,190.97,0.03430313]
[1738890715820,5.2355,191.0,190.97,0.03430313]
[1738890716829,105.3935,191.06,190.97,0.03430313]
[1738890719728,5.2355,191.0,190.97,0.03430313]
[1738890719932,23.69794219,191.04,190.97,0.03430313]
[1738890720332,23.69794219,191.01,190.97,0.03430313]
[1738890720628,23.69794219,191.01,190.89,8.502]
[1738890720827,23.69794219,191.01,190.92,7.21754507]
[1738890721531,23.69794219,191.04,190.92,7.21754507]
[1738890721730,5.2361,190.97,190.95,0.03595636]
[1738890722332,0.03677014,190.98,190.95,0.03595636]
[1738890727940,5.2364,190.96,190.95,0.03595636]
[1738890729238,5.2363,190.97,190.95,0.03595636]
[1738890730141,5.2364,190.96,190.95,0.03595636]
[1738890732039,0.03677014,190.98,190.95,0.03595636]
[1738890732239,5.2361,190.97,190.95,0.03595636]
[1738890732740,0.03677014,190.98,190.95,0.03595636]
[1738890734444,0.03677014,190.98,190.95,5.27255636]
[1738890736538,0.03677014,190.98,190.95,0.03595636]
[1738890736746,0.03677014,190.98,190.96,5.2364]
[1738890737439,0.03677014,190.98,190.97,5.2361]
[1738890739238,0.03677014,190.98,190.95,1.58885636]
[1738890739442,0.03677014,190.98,190.96,5.2363]
[1738890739845,0.03677014,190.98,190.95,1.58885636]
[1738890740052,0.03677014,190.98,190.97,5.2361]
[1738890747253,3.94,191.09,190.97,5.2361]
[1738890747254,17.94195745,191.14,190.97,14.81685745]
[1738890747553,0.96197559,191.13,191.01,14.81685745]
[1738890747752,5.2331,191.08,191.04,5.2342]
[1738890747949,5.2331,191.08,191.02,1.6356]
[1738890748252,5.2331,191.08,191.03,0.03365487]
[1738890749152,5.2331,191.08,191.03,5.26795487]
[1738890749353,5.2328,191.09,191.03,0.03365487]
[1738890749955,5.2328,191.09,191.04,5.2339]
[1738890751349,16.36625745,191.14,191.03,5.26805487]
[1738890753156,5.2327,191.1,191.04,5.2341]
[1738890753558,5.2327,191.1,191.05,0.03676863]
[1738890754362,5.2327,191.1,191.05,5.27056863]
[1738890754562,5.233,191.09,191.05,0.03676863]
[1738890755256,14.81685745,191.11,191.05,0.03676863]
[1738890755461,5.2332,191.08,191.05,0.03676863]
[1738890755860,14.81685745,191.11,191.05,0.03676863]
[1738890756264,5.2335,191.07,191.05,0.03676863]
[1738890756458,14.81685745,191.11,191.05,0.03676863]
[1738890756658,14.81685745,191.08,191.05,0.03676863]
[1738890757061,5.2345,191.03,190.97,1.6572]
[1738890757665,5.2342,191.04,190.97,1.6572]
[1738890757963,14.81685745,191.08,190.97,1.6572]
[1738890758167,0.03374501,191.02,190.99,0.03355574]
[1738890758462,0.03374501,191.02,191.01,5.235]
[1738890758859,3.94,191.11,191.01,14.81685745]
[1738890759069,5.2331,191.09,191.03,5.2342]
[1738890760161,18.75685745,191.11,191.04,0.03505363]
[1738890762565,5.2336,191.07,191.04,0.03505363]
[1738890763462,18.75685745,191.11,191.04,0.03505363]
[1738890763463,5.2339,191.05,191.04,0.03505363]
[1738890764474,14.81685745,191.02,190.93,7.21754507]
[1738890765572,0.03509123,190.99,190.96,0.03712486]
[1738890767871,5.27079123,190.99,190.96,0.03712486]
[1738890768366,5.2361,190.97,190.96,0.03712486]
[1738890778383,5.2361,190.97,190.96,2.486e-05]
[1738890780475,14.85194868,190.99,190.86,7.21754507]
[1738890780476,1.662,190.98,190.86,7.21754507]
[1738890780675,5.2384,190.89,190.83,17.99615745]
[1738890780882,14.81685745,190.95,190.83,17.99615745]
[1738890781174,5.2376,190.92,190.84,5.2395]